lending/lending_fUSD_20240411
["ID","MTS","AMOUNT","RATE_DAILY","PERIOD"]
[322176465,1712863892712,-2271.32,0.00028767,2]
[322176466,1712863892721,-687.63,0.00028767,2]
[322176467,1712863892730,-3074.05,0.00028767,2]
[322176468,1712863892739,-488.07329439,0.00028767,2]
[322176469,1712863892749,-1265.86,0.00028767,2]
[322176470,1712863892758,-500.0,0.00028767,2]
[322176471,1712863892767,-500.0,0.00028767,2]
[322176472,1712863892777,-500.0,0.00028767,2]
[322176473,1712863892786,-1938.09,0.00028767,2]
[322176474,1712863892795,-4379.49,0.00028767,2]
[322176475,1712863892805,-1283.37,0.00028767,2]
[322176476,1712863892815,-1885.35,0.00028767,2]
[322176477,1712863892825,-4346.86,0.00028767,2]
[322176478,1712863892837,-1155.02,0.00028767,2]
[322176479,1712863892847,-500.0,0.00028767,2]
[322176480,1712863892858,-53501.75,0.00028767,2]
[322176481,1712863892868,-1799.15,0.00028767,2]
[322176482,1712863892877,-2310.28,0.00028767,2]
[322176483,1712863892886,-1949.19,0.00028767,2]
[322176484,1712863892896,-1577.48,0.00028767,2]
[322176485,1712863892905,-522.11,0.00028767,2]
[322176486,1712863892915,-1254.45,0.00028767,2]
[322176487,1712863892925,-2414.38,0.00028767,2]
[322176488,1712863892934,-18239.28,0.00028767,2]
[322176489,1712863892944,-500.0,0.00028767,2]
[322176490,1712863892953,-907.51,0.00028767,2]
[322176491,1712863892963,-1269.78,0.00028767,2]
[322176492,1712863892972,-500.0,0.00028767,2]
[322176493,1712863892983,-4087.64,0.00028767,2]
[322176494,1712863892993,-4035.48,0.00028767,2]
[322176495,1712863893002,-1472.75,0.00028767,2]
[322176496,1712863893011,-569.15,0.00028767,2]
[322176497,1712863893021,-500.0,0.00028767,2]
[322176498,1712863893031,-500.0,0.00028767,2]
[322176499,1712863893041,-500.0,0.00028767,2]
[322176500,1712863893050,-3443.33,0.00028767,2]
[322176501,1712863893060,-500.0,0.00028767,2]
[322176502,1712863893069,-715.43,0.00028767,2]
[322176503,1712863893079,-1468.65,0.00028767,2]
[322176504,1712863893090,-4438.94,0.00028767,2]
[322176505,1712863893099,-500.0,0.00028767,2]
[322176506,1712863893112,-500.0,0.00028767,2]
[322176507,1712863893121,-947.32,0.00028767,2]
[322176508,1712863893131,-1460.88,0.00028767,2]
[322176509,1712863893140,-1078.14,0.00028767,2]
[322176510,1712863893150,-500.0,0.00028767,2]
[322176511,1712863893159,-4053.95,0.00028767,2]
[322176512,1712863893168,-742.27,0.00028767,2]
[322176513,1712863893178,-500.0,0.00028767,2]
[322176514,1712863893188,-500.0,0.00028767,2]
[322176515,1712863893200,-1767.47,0.00028767,2]
[322176516,1712863893216,-785.41,0.00028767,2]
[322176517,1712863893225,-9803.96,0.00028767,2]
[322176518,1712863893234,-1559.45,0.00028767,2]
[322176519,1712863893246,-12452.77,0.00028767,2]
[322176520,1712863893257,-500.0,0.00028767,2]
[322176521,1712863893268,-500.0,0.00028767,2]
[322176522,1712863893278,-6184.21,0.00028767,2]
[322176523,1712863893290,-696.39,0.00028767,2]
[322176524,1712863893299,-4243.64,0.00028767,2]
[322176525,1712863893311,-500.0,0.00028767,2]
[322176526,1712863893321,-500.0,0.00028767,2]
[322176527,1712863893331,-1034.64,0.00028767,2]
[322176528,1712863893342,-500.0,0.00028767,2]
[322176529,1712863893352,-500.0,0.00028767,2]
[322176530,1712863893362,-2762.12,0.00028767,2]
[322176531,1712863893372,-2525.19,0.00028767,2]
[322176532,1712863893383,-3638.97,0.00028767,2]
[322176533,1712863893393,-809.39,0.00028767,2]
[322176534,1712863893403,-6755.28,0.00028767,2]
[322176535,1712863893412,-514.37811708,0.00028767,2]
[322176536,1712863893423,-500.0,0.00028767,2]
[322176537,1712863893435,-3313.18,0.00028767,2]
[322176538,1712863893446,-3298.66,0.00028767,2]
[322176539,1712863893456,-2090.96,0.00028767,2]
[322176540,1712863893466,-3316.05,0.00028767,2]
[322176541,1712863893476,-500.0,0.00028767,2]
[322176542,1712863893487,-2581.64,0.00028767,2]
[322176543,1712863893496,-500.0,0.00028767,2]
[322176544,1712863893506,-500.0,0.00028767,2]
[322176545,1712863893516,-2873.47,0.00028767,2]
[322176546,1712863893525,-500.0,0.00028767,2]
[322176547,1712863893534,-2480.74,0.00028767,2]
[322176548,1712863893545,-1598.84,0.00028767,2]
[322176549,1712863893554,-1789.61,0.00028767,2]
[322176550,1712863893564,-14422.58,0.00028767,2]
[322176551,1712863893573,-5953.17,0.00028767,2]
[322176552,1712863893583,-1652.71,0.00028767,2]
[322176553,1712863893595,-737.57,0.00028767,2]
[322176554,1712863893606,-500.0,0.00028767,2]
[322176555,1712863893617,-500.0,0.00028767,2]
[322176556,1712863893626,-7074.56,0.00028767,2]
[322176557,1712863893637,-1619.98,0.00028767,2]
[322176558,1712863893648,-2584.49,0.00028767,2]
[322176559,1712863893657,-2631.69,0.00028767,2]
[322176560,1712863893666,-10781.75,0.00028767,2]
[322176561,1712863893678,-2141.81,0.00028767,2]
[322176562,1712863893687,-2228.38,0.00028767,2]
[322176563,1712863893698,-1182.41,0.00028767,2]
[322176564,1712863893708,-547.08,0.00028767,2]
[322176565,1712863893721,-1306.7,0.00028767,2]
[322176566,1712863893731,-2162.99,0.00028767,2]
[322176567,1712863893741,-1593.8,0.00028767,2]
[322176568,1712863893751,-500.0,0.00028767,2]
[322176569,1712863893764,-1388.34,0.00028767,2]
[322176570,1712863893774,-4975.16,0.00028767,2]
[322176571,1712863893785,-500.0,0.00028767,2]
[322176572,1712863893795,-500.0,0.00028767,2]
[322176573,1712863893805,-3398.13,0.00028767,2]
[322176574,1712863893815,-500.0,0.00028767,2]
[322176575,1712863893826,-4052.06,0.00028767,2]
[322176576,1712863893836,-500.0,0.00028767,2]
[322176577,1712863893845,-3587.71,0.00028767,2]
[322176578,1712863893855,-500.0,0.00028767,2]
[322176579,1712863893864,-2718.79,0.00028767,2]
[322176580,1712863893874,-538.59,0.00028767,2]
[322176581,1712863893883,-643.87,0.00028767,2]
[322176582,1712863893895,-1944.58,0.00028767,2]
[322176583,1712863893904,-3239.59,0.00028767,2]
[322176584,1712863893914,-640.82,0.00028767,2]
[322176585,1712863893923,-2450.14,0.00028767,2]
[322176586,1712863893932,-741.23,0.00028767,2]
[322176587,1712863893941,-1379.62,0.00028767,2]
[322176588,1712863893951,-500.0,0.00028767,2]
[322176589,1712863893960,-1028.85,0.00028767,2]
[322176590,1712863893970,-5944.87,0.00028767,2]
[322176591,1712863893980,-2132.08,0.00028767,2]
[322176592,1712863893990,-1280.64,0.00028767,2]
[322176593,1712863893999,-1028.51,0.00028767,2]
[322176594,1712863894008,-4562.38,0.00028767,2]
[322176595,1712863894018,-7074.77,0.00028767,2]
[322176596,1712863894027,-6825.13,0.00028767,2]
[322176597,1712863894036,-3134.26,0.00028767,2]
[322176598,1712863894046,-500.0,0.00028767,2]
[322176599,1712863894055,-2368.31,0.00028767,2]
[322176600,1712863894064,-1225.72,0.00028767,2]
[322176601,1712863894073,-15352.07,0.00028767,2]
[322176602,1712863894082,-518.97058384,0.00028767,2]
[322176603,1712863894094,-1114.66,0.00028767,2]
[322176604,1712863894103,-500.0,0.00028767,2]
[322176605,1712863894113,-1085.38,0.00028767,2]
[322176606,1712863894122,-757.5,0.00028767,2]
[322176607,1712863894132,-1240.17,0.00028767,2]
[322176608,1712863894142,-3289.28,0.00028767,2]
[322176609,1712863894152,-3479.62,0.00028767,2]
[322176610,1712863894162,-4609.28,0.00028767,2]
[322176611,1712863894171,-586.73,0.00028767,2]
[322176612,1712863894180,-776.88,0.00028767,2]
[322176613,1712863894189,-1626.2,0.00028767,2]
[322176614,1712863894198,-500.0,0.00028767,2]
[322176615,1712863894206,-20099.39,0.00028767,2]
[322176616,1712863894215,-851.06,0.00028767,2]
[322176617,1712863894224,-1308.93,0.00028767,2]
[322176618,1712863894233,-25741.65,0.00028767,2]
[322176619,1712863894242,-3018.25,0.00028767,2]
[322176620,1712863894251,-2048.9,0.00028767,2]
[322176621,1712863894260,-3588.33,0.00028767,2]
[322176622,1712863894271,-3107.63,0.00028767,2]
[322176623,1712863894280,-1051.67,0.00028767,2]
[322176624,1712863894289,-2374.36,0.00028767,2]
[322176625,1712863894300,-500.0,0.00028767,2]
[322176626,1712863894309,-1592.05,0.00028767,2]
[322176627,1712863894319,-505.91,0.00028767,2]
[322176628,1712863894329,-19452.39,0.00028767,2]
[322176629,1712863894342,-2534.14,0.00028767,2]
[322176630,1712863894351,-527.81,0.00028767,2]
[322176631,1712863894361,-500.0,0.00028767,2]
[322176632,1712863894372,-3020.3,0.00028767,2]
[322176633,1712863894381,-7446.86,0.00028767,2]
[322176634,1712863894391,-1495.54,0.00028767,2]
[322176635,1712863894400,-500.0,0.00028767,2]
[322176636,1712863894410,-2700.11,0.00028767,2]
[322176637,1712863894419,-614.49,0.00028767,2]
[322176638,1712863894429,-500.0,0.00028767,2]
[322176639,1712863894439,-1142.49,0.00028767,2]
[322176640,1712863894449,-8843.49,0.00028767,2]
[322176641,1712863894459,-682.27,0.00028767,2]
[322176642,1712863894469,-2651.73,0.00028767,2]
[322176643,1712863894480,-18815.4,0.00028767,2]
[322176644,1712863894490,-54176.01,0.00028767,2]
[322176645,1712863894501,-3784.62,0.00028767,2]
[322176646,1712863894510,-1593.95,0.00028767,2]
[322176647,1712863894519,-8906.82,0.00028767,2]
[322176648,1712863894529,-4300.73,0.00028767,2]
[322176649,1712863894539,-631.27,0.00028767,2]
[322176650,1712863894549,-596.57,0.00028767,2]
[322176651,1712863894560,-500.0,0.00028767,2]
[322176652,1712863894570,-4603.8,0.00028767,2]
[322176653,1712863894580,-2116.62,0.00028767,2]
[322176654,1712863894591,-4305.06,0.00028767,2]
[322176655,1712863894605,-821.16,0.00028767,2]
[322176656,1712863894615,-6457.93,0.00028767,2]
[322176657,1712863894627,-500.0,0.00028767,2]
[322176658,1712863894638,-1483.72,0.00028767,2]
[322176659,1712863894648,-500.0,0.00028767,2]
[322176660,1712863894658,-690.55,0.00028767,2]
[322176661,1712863894668,-500.0,0.00028767,2]
[322176662,1712863894679,-812.85,0.00028767,2]
[322176663,1712863894690,-5042.1,0.00028767,2]
[322176664,1712863894700,-2960.07,0.00028767,2]
[322176665,1712863894710,-500.0,0.00028767,2]
[322176666,1712863894721,-5647.2,0.00028767,2]
[322176667,1712863894731,-2440.94,0.00028767,2]
[322176668,1712863894742,-500.0,0.00028767,2]
[322176669,1712863894752,-4454.49,0.00028767,2]
[322176670,1712863894764,-500.0,0.00028767,2]
[322176671,1712863894775,-1308.46,0.00028767,2]
[322176672,1712863894786,-748.44,0.00028767,2]
[322176673,1712863894796,-500.0,0.00028767,2]
[322176674,1712863894807,-849.93,0.00028767,2]
[322176675,1712863894817,-9726.64,0.00028767,2]
[322176676,1712863894828,-3590.29,0.00028767,2]
[322176677,1712863894840,-501.06,0.00028767,2]
[322176678,1712863894849,-3226.22,0.00028767,2]
[322176679,1712863894860,-500.0,0.00028767,2]
[322176680,1712863894869,-769.9,0.00028767,2]
[322176681,1712863894879,-7238.93,0.00028767,2]
[322176682,1712863894889,-837.7,0.00028767,2]
[322176683,1712863894898,-500.0,0.00028767,2]
[322176684,1712863894908,-866.14,0.00028767,2]
[322176685,1712863894918,-500.0,0.00028767,2]
[322176686,1712863894928,-2879.46,0.00028767,2]
[322176687,1712863894938,-3278.69,0.00028767,2]
[322176688,1712863894948,-1814.55,0.00028767,2]
[322176689,1712863894958,-34421.11,0.00028767,2]
[322176690,1712863894967,-1644.22,0.00028767,2]
[322176691,1712863894977,-500.0,0.00028767,2]
[322176692,1712863894986,-500.0,0.00028767,2]
[322176693,1712863894995,-500.0,0.00028767,2]
[322176694,1712863895006,-689.01,0.00028767,2]
[322176695,1712863895016,-984.54,0.00028767,2]
[322176696,1712863895026,-795.68,0.00028767,2]
[322176697,1712863895037,-3327.03,0.00028767,2]
[322176698,1712863895047,-500.0,0.00028767,2]
[322176699,1712863895058,-1110.72,0.00028767,2]
[322176700,1712863895068,-4548.52,0.00028767,2]
[322176701,1712863895078,-6971.64,0.00028767,2]
[322176702,1712863895089,-1689.02,0.00028767,2]
[322176703,1712863895099,-4131.95,0.00028767,2]
[322176704,1712863895109,-1399.8,0.00028767,2]
[322176705,1712863895119,-588.2,0.00028767,2]
[322176706,1712863895129,-2132.57,0.00028767,2]
[322176707,1712863895140,-2460.93,0.00028767,2]
[322176708,1712863895150,-3570.47,0.00028767,2]
[322176709,1712863895162,-940.49,0.00028767,2]
[322176710,1712863895172,-1384.5,0.00028767,2]
[322176711,1712863895181,-523.38,0.00028767,2]
[322176712,1712863895191,-5204.76,0.00028767,2]
[322176713,1712863895201,-7694.44,0.00028767,2]
[322176714,1712863895211,-500.0,0.00028767,2]
[322176715,1712863895221,-500.0,0.00028767,2]
[322176716,1712863895230,-12079.87,0.00028767,2]
[322176717,1712863895240,-6684.72,0.00028767,2]
[322176718,1712863895250,-526.39,0.00028767,2]
[322176719,1712863895260,-5671.76,0.00028767,2]
[322176720,1712863895271,-2162.52,0.00028767,2]
[322176721,1712863895281,-500.0,0.00028767,2]
[322176722,1712863895291,-2445.18,0.00028767,2]
[322176723,1712863895300,-3880.76,0.00028767,2]
[322176724,1712863895311,-730.94,0.00028767,2]
[322176725,1712863895322,-3432.24,0.00028767,2]
[322176726,1712863895332,-676.92,0.00028767,2]
[322176727,1712863895342,-500.0,0.00028767,2]
[322176728,1712863895352,-534.08,0.00028767,2]
[322176729,1712863895362,-2554.06,0.00028767,2]
[322176730,1712863895372,-2590.36,0.00028767,2]
[322176731,1712863895382,-500.0,0.00028767,2]
[322176732,1712863895391,-1131.02,0.00028767,2]
[322176733,1712863895401,-1707.21,0.00028767,2]
[322176734,1712863895411,-2283.61,0.00028767,2]
[322176735,1712863895421,-7140.03,0.00028767,2]
[322176736,1712863895432,-615.11,0.00028767,2]
[322176737,1712863895442,-731.31,0.00028767,2]
[322176738,1712863895453,-5613.0,0.00028767,2]
[322176739,1712863895463,-500.0,0.00028767,2]
[322176740,1712863895474,-1489.13,0.00028767,2]
[322176741,1712863895485,-500.0,0.00028767,2]
[322176742,1712863895496,-500.0,0.00028767,2]
[322176743,1712863895506,-500.0,0.00028767,2]
[322176744,1712863895517,-500.0,0.00028767,2]
[322176745,1712863895528,-585.96,0.00028767,2]
[322176746,1712863895540,-11078.41,0.00028767,2]
[322176747,1712863895551,-2508.39,0.00028767,2]
[322176748,1712863895562,-1856.58,0.00028767,2]
[322176749,1712863895572,-500.0,0.00028767,2]
[322176750,1712863895583,-1073.6,0.00028767,2]
[322176751,1712863895597,-554.68,0.00028767,2]
[322176752,1712863895607,-2129.83,0.00028767,2]
[322176753,1712863895618,-4134.48,0.00028767,2]
[322176754,1712863895628,-4212.13,0.00028767,2]
[322176755,1712863895639,-3469.4,0.00028767,2]
[322176756,1712863895650,-500.0,0.00028767,2]
[322176757,1712863895660,-563.5,0.00028767,2]
[322176758,1712863895670,-8111.23,0.00028767,2]
[322176759,1712863895681,-500.0,0.00028767,2]
[322176760,1712863895691,-526.02,0.00028767,2]
[322176761,1712863895702,-644.22,0.00028767,2]
[322176762,1712863895712,-200.0,0.00028778,2]
[322176763,1712863895723,-150.0,0.000288,2]
[322176764,1712863895733,-153.90892363,0.00028843,2]
[322176765,1712863895743,-6213.55879472,0.00028876,2]
[322176766,1712863895754,-360.7225945,0.0002888,2]
[322176767,1712863895764,-4610.41930142,0.00028918,2]
[322176768,1712863895775,-3527.4826107,0.00028918,2]
[322176769,1712863895785,-178.31418455,0.00028941,2]
[322176770,1712863895795,-15631.98085851,0.00029,2]
[322176771,1712863895805,-601.52,0.00029,2]
[322176772,1712863895816,-150.5,0.00029,15]
[322176773,1712863895826,-6745.48276377,0.00029,2]
[322176774,1712863895838,-150.5,0.0002901,15]
[322176775,1712863895848,-500.0,0.00029041,2]
[322176776,1712863895858,-558.78,0.00029041,2]
[322176777,1712863895869,-370.92918814,0.00029041,2]
[322176778,1712863895880,-781.35,0.00029041,2]
[322176779,1712863895891,-500.0,0.00029041,2]
[322176780,1712863895901,-577.97,0.00029041,2]
[322176781,1712863895911,-500.0,0.00029041,2]
[322176782,1712863895921,-500.0,0.00029041,2]
[322176783,1712863895931,-508.83,0.00029041,2]
[322176784,1712863895942,-616.34,0.00029041,2]
[322176785,1712863895953,-500.0,0.00029041,2]
[322176786,1712863895963,-500.0,0.00029041,2]
[322176787,1712863895974,-500.0,0.00029041,2]
[322176788,1712863895985,-500.0,0.00029041,2]
[322176789,1712863895995,-500.0,0.00029041,2]
[322176790,1712863896006,-500.0,0.00029041,2]
[322176791,1712863896016,-500.0,0.00029041,2]
[322176792,1712863896026,-500.0,0.00029041,2]
[322176793,1712863896037,-500.0,0.00029041,2]
[322176794,1712863896047,-979.68,0.00029041,2]
[322176795,1712863896058,-678.48,0.00029041,2]
[322176796,1712863896069,-500.0,0.00029041,2]
[322176797,1712863896079,-500.0,0.00029041,2]
[322176798,1712863896091,-500.0,0.00029041,2]
[322176799,1712863896101,-500.0,0.00029041,2]
[322176800,1712863896111,-500.0,0.00029041,2]
[322176801,1712863896122,-500.0,0.00029041,2]
[322176802,1712863896134,-539.25,0.00029041,2]
[322176803,1712863896144,-956.96,0.00029041,2]
[322176804,1712863896155,-730.66,0.00029041,2]
[322176805,1712863896165,-500.0,0.00029041,2]
[322176806,1712863896176,-520.74,0.00029041,2]
[322176807,1712863896186,-500.0,0.00029041,2]
[322176808,1712863896197,-500.0,0.00029041,2]
[322176809,1712863896208,-1271.89,0.00029041,2]
[322176810,1712863896219,-582.63,0.00029041,2]
[322176811,1712863896229,-500.0,0.00029041,2]
[322176812,1712863896239,-661.97,0.00029041,2]
[322176813,1712863896249,-500.0,0.00029041,2]
[322176814,1712863896260,-511.72538769,0.00029041,2]
[322176815,1712863896270,-500.0,0.00029041,2]
[322176816,1712863896281,-500.0,0.00029041,2]
[322176817,1712863896291,-598.1,0.00029041,2]
[322176818,1712863896302,-500.0,0.00029041,2]
[322176819,1712863896312,-500.0,0.00029041,2]
[322176820,1712863896322,-500.0,0.00029041,2]
[322176821,1712863896333,-500.0,0.00029041,2]
[322176822,1712863896344,-735.6,0.00029041,2]
[322176823,1712863896355,-500.0,0.00029041,2]
[322176824,1712863896365,-500.0,0.00029041,2]
[322176825,1712863896375,-500.0,0.00029041,2]
[322176826,1712863896385,-724.36,0.00029041,2]
[322176827,1712863896396,-500.0,0.00029041,2]
[322176828,1712863896407,-500.0,0.00029041,2]
[322176829,1712863896417,-500.0,0.00029041,2]
[322176830,1712863896427,-500.0,0.00029041,2]
[322176831,1712863896438,-500.0,0.00029041,2]
[322176832,1712863896449,-662.41,0.00029041,2]
[322176833,1712863896459,-500.0,0.00029041,2]
[322176834,1712863896470,-500.0,0.00029041,2]
[322176835,1712863896480,-341.66662059,0.00029041,2]
[322176836,1712863896490,-340.98969511,0.00029041,2]
[322176837,1712863896500,-303.75899926,0.00029041,2]
[322176838,1712863896510,-500.0,0.00029041,2]
[322176839,1712863896520,-625.31534331,0.00029041,2]
[322176840,1712863896530,-645.77,0.00029041,2]
[322176841,1712863896540,-500.0,0.00029041,2]
[322176842,1712863896550,-500.0,0.00029041,2]
[322176843,1712863896559,-630.18,0.00029041,2]
[322176844,1712863896569,-538.93,0.00029041,2]
[322176845,1712863896579,-500.0,0.00029041,2]
[322176846,1712863896591,-1170.3,0.00029041,2]
[322176847,1712863896604,-500.0,0.00029041,2]
[322176848,1712863896614,-500.0,0.00029041,2]
[322176849,1712863896625,-500.0,0.00029041,2]
[322176850,1712863896635,-500.0,0.00029041,2]
[322176851,1712863896645,-500.0,0.00029041,2]
[322176852,1712863896655,-622.48,0.00029041,2]
[322176853,1712863896666,-500.0,0.00029041,2]
[322176854,1712863896675,-500.0,0.00029041,2]
[322176855,1712863896686,-500.0,0.00029041,2]
[322176856,1712863896696,-881.06,0.00029041,2]
[322176857,1712863896946,-776.07,0.00029041,2]
[322176858,1712863896957,-500.0,0.00029041,2]
[322176859,1712863896966,-500.0,0.00029041,2]
[322176860,1712863896976,-500.0,0.00029041,2]
[322176861,1712863896986,-500.0,0.00029041,2]
[322176862,1712863896995,-500.0,0.00029041,2]
[322176863,1712863897005,-619.23,0.00029041,2]
[322176864,1712863897014,-609.85,0.00029041,2]
[322176865,1712863897024,-500.0,0.00029041,2]
[322176866,1712863897033,-979.3,0.00029041,2]
[322176867,1712863897043,-300.0,0.00029041,2]
[322176868,1712863897053,-643.33999431,0.00029041,2]
[322176869,1712863897062,-848.99,0.00029041,2]
[322176870,1712863897072,-500.0,0.00029041,2]
[322176871,1712863897082,-232.96066066,0.00029041,2]
[322176872,1712863897093,-500.0,0.00029041,2]
[322176873,1712863897102,-500.0,0.00029041,2]
[322176874,1712863897111,-561.42,0.00029041,2]
[322176875,1712863897121,-556.26,0.00029041,2]
[322176876,1712863897131,-500.0,0.00029041,2]
[322176877,1712863897141,-750.5,0.00029041,2]
[322176878,1712863897150,-795.39,0.00029041,2]
[322176879,1712863897160,-500.0,0.00029041,2]
[322176880,1712863897170,-154.01,0.00029041,2]
[322176881,1712863897180,-500.0,0.00029041,2]
[322176882,1712863897189,-821.11,0.00029041,2]
[322176883,1712863897199,-500.0,0.00029041,2]
[322176884,1712863897208,-520.41,0.00029041,2]
[322176885,1712863897218,-500.0,0.00029041,2]
[322176886,1712863897227,-500.0,0.00029041,2]
[322176887,1712863897237,-649.6,0.00029041,2]
[322176888,1712863897246,-855.37,0.00029041,2]
[322176889,1712863897256,-500.0,0.00029041,2]
[322176890,1712863897266,-649.39,0.00029041,2]
[322176891,1712863897276,-832.74,0.00029041,2]
[322176892,1712863897285,-500.0,0.00029041,2]
[322176893,1712863897295,-500.0,0.00029041,2]
[322176894,1712863897304,-2180.86,0.00029041,2]
[322176895,1712863897314,-412.58937517,0.00029041,2]
[322176896,1712863897323,-1399.6,0.00029041,2]
[322176897,1712863897332,-500.0,0.00029041,2]
[322176898,1712863897342,-500.0,0.00029041,2]
[322176899,1712863897351,-626.17,0.00029041,2]
[322176900,1712863897360,-1778.24,0.00029041,2]
[322176901,1712863897370,-1158.17,0.00029041,2]
[322176902,1712863897379,-500.0,0.00029041,2]
[322176903,1712863897388,-500.0,0.00029041,2]
[322176904,1712863897398,-500.0,0.00029041,2]
[322176905,1712863897407,-638.17,0.00029041,2]
[322176906,1712863897417,-542.85,0.00029041,2]
[322176907,1712863897426,-500.0,0.00029041,2]
[322176908,1712863897436,-1858.63,0.00029041,2]
[322176909,1712863897445,-500.0,0.00029041,2]
[322176910,1712863897455,-319.63256765,0.00029041,2]
[322176911,1712863897464,-204.93895454,0.00029041,2]
[322176912,1712863897474,-776.82,0.00029041,2]
[322176913,1712863897483,-500.0,0.00029041,2]
[322176914,1712863897493,-243.94495677,0.00029041,2]
[322176915,1712863897502,-500.0,0.00029041,2]
[322176916,1712863897511,-524.59,0.00029041,2]
[322176917,1712863897521,-500.0,0.00029041,2]
[322176918,1712863897530,-500.0,0.00029041,2]
[322176919,1712863897540,-500.0,0.00029041,2]
[322176920,1712863897550,-539.06,0.00029041,2]
[322176921,1712863897560,-1089.41,0.00029041,2]
[322176922,1712863897570,-500.0,0.00029041,2]
[322176923,1712863897580,-1111.79,0.00029041,2]
[322176924,1712863897590,-500.0,0.00029041,2]
[322176925,1712863897602,-656.89,0.00029041,2]
[322176926,1712863897612,-500.0,0.00029041,2]
[322176927,1712863897622,-156.140992,0.00029041,7]
[322176928,1712863897631,-156.140992,0.00029041,7]
[322176929,1712863897642,-500.0,0.00029041,2]
[322176930,1712863897651,-500.0,0.00029041,2]
[322176931,1712863897661,-156.140992,0.00029041,7]
[322176932,1712863897671,-156.140992,0.00029041,7]
[322176933,1712863897681,-854.73,0.00029041,2]
[322176934,1712863897690,-500.0,0.00029041,2]
[322176935,1712863897700,-2876.44,0.00029041,2]
[322176936,1712863897710,-590.9,0.00029041,2]
[322176937,1712863897719,-1802.49,0.00029041,2]
[322176938,1712863897729,-1195.47,0.00029041,2]
[322176939,1712863897739,-500.0,0.00029041,2]
[322176940,1712863897748,-500.0,0.00029041,2]
[322176941,1712863897758,-500.0,0.00029041,2]
[322176942,1712863897767,-687.99,0.00029041,2]
[322176943,1712863897777,-500.0,0.00029041,2]
[322176944,1712863897786,-500.0,0.00029041,2]
[322176945,1712863897795,-688.71,0.00029041,2]
[322176946,1712863897805,-812.38,0.00029041,2]
[322176947,1712863897814,-331.04377411,0.00029041,2]
[322176948,1712863897823,-500.0,0.00029041,2]
[322176949,1712863897834,-500.0,0.00029041,2]
[322176950,1712863897844,-911.26,0.00029041,2]
[322176951,1712863897853,-1387.07,0.00029041,2]
[322176952,1712863897863,-1238.46,0.00029041,2]
[322176953,1712863897872,-701.45,0.00029041,2]
[322176954,1712863897882,-500.0,0.00029041,2]
[322176955,1712863897891,-1637.96,0.00029041,2]
[322176956,1712863897901,-500.0,0.00029041,2]
[322176957,1712863897911,-500.0,0.00029041,2]
[322176958,1712863897921,-500.0,0.00029041,2]
[322176959,1712863897930,-500.0,0.00029041,2]
[322176960,1712863897940,-727.26,0.00029041,2]
[322176961,1712863897950,-500.0,0.00029041,2]
[322176962,1712863897959,-500.0,0.00029041,2]
[322176963,1712863897969,-951.93,0.00029041,2]
[322176964,1712863897978,-912.94,0.00029041,2]